fUSD/lending_fUSD_20250504
["ID","MTS","AMOUNT","RATE_DAILY","PERIOD"]
[359781322,1746339040115,-476.56135874,0.00019948,2]
[359781323,1746339040126,-401.43864126,0.00019948,2]
[359781324,1746339040136,-2191.379,0.00019948,2]
[359781325,1746339040145,-4010.0,0.00019948,2]
[359781326,1746339040154,-186.621,0.00019948,2]
[359781327,1746339040164,-272.379,0.00019948,2]
[359781328,1746339040174,-878.0,0.00019948,2]
[359781329,1746339040183,-250.62515131,0.0001995,2]
[359781330,1746339040193,-2198.191,0.00019953,2]
[359781331,1746339040202,-188.177,0.00019953,2]
[359781332,1746339040211,-151.0,0.00019968,2]
[359781333,1746339040221,-151.0,0.00019968,2]
[359781334,1746339040230,-668.65185757,0.00019968,2]
[359781335,1746339040240,-500.0,0.00019973,2]
[359781336,1746339040249,-500.0,0.00019973,2]
[359781337,1746339040259,-500.0,0.00019973,2]
[359781338,1746339040268,-500.0,0.00019973,2]
[359781339,1746339040277,-500.0,0.00019973,2]
[359781340,1746339040287,-500.0,0.00019973,2]
[359781341,1746339040296,-150.0,0.00019973,2]
[359781342,1746339040306,-500.0,0.00019973,2]
[359781343,1746339040316,-500.0,0.00019973,2]
[359781344,1746339040326,-279.39071529,0.00019973,2]
[359781345,1746339040335,-500.0,0.00019973,2]
[359781346,1746339040344,-450.0,0.00019979,2]
[359781347,1746339040354,-450.0,0.00019979,2]
[359781348,1746339040364,-450.0,0.00019979,2]
[359781349,1746339040373,-450.0,0.00019979,2]
[359781350,1746339040383,-450.0,0.00019979,2]
[359781351,1746339040393,-586.06,0.00019979,2]
[359781352,1746339040403,-3773.41,0.00019979,2]
[359781353,1746339040412,-1265.75,0.00019979,2]
[359781354,1746339040422,-450.0,0.00019979,2]
[359781355,1746339040431,-3060.49,0.00019979,2]
[359781356,1746339040440,-462.37,0.00019979,2]
[359781357,1746339040449,-450.0,0.00019979,2]
[359781358,1746339040458,-450.0,0.00019979,2]
[359781359,1746339040468,-450.0,0.00019979,2]
[359781360,1746339040477,-152.34142248,0.00019979,2]
[359781361,1746339040486,-450.0,0.0001998,2]
[359781362,1746339040496,-450.0,0.0001998,2]
[359781363,1746339040505,-475.94245205,0.0001998,2]
[359781364,1746339040514,-450.0,0.0001998,2]
[359781365,1746339040524,-601.87,0.0001998,2]
[359781366,1746339040534,-450.0,0.0001998,2]
[359781367,1746339040543,-450.0,0.0001998,2]
[359781368,1746339040553,-450.0,0.0001998,2]
[359781369,1746339040563,-450.0,0.0001998,2]
[359781370,1746339040572,-450.0,0.0001998,2]
[359781371,1746339040582,-450.0,0.0001998,2]
[359781372,1746339040591,-450.0,0.0001998,2]
[359781373,1746339040601,-450.0,0.0001998,2]
[359781374,1746339040610,-450.0,0.0001998,2]
[359781375,1746339040620,-450.0,0.0001998,2]
[359781376,1746339040630,-450.0,0.0001998,2]
[359781377,1746339040639,-1414.21,0.0001998,2]
[359781378,1746339040649,-450.0,0.0001998,2]
[359781379,1746339040659,-450.0,0.0001998,2]
[359781380,1746339040670,-323.09118242,0.0001998,2]
[359781382,1746339040870,-450.0,0.0001998,2]
[359781383,1746339040887,-450.0,0.0001998,2]
[359781384,1746339040897,-450.0,0.0001998,2]
[359781385,1746339040908,-820.99,0.0001998,2]
[359781386,1746339040918,-450.0,0.0001998,2]
[359781387,1746339040927,-450.0,0.0001998,2]
[359781388,1746339040939,-450.0,0.0001998,2]
[359781389,1746339040950,-549.38,0.0001998,2]
[359781390,1746339040960,-450.0,0.0001998,2]
[359781391,1746339040969,-450.0,0.0001998,2]
[359781392,1746339040978,-498.69457789,0.0001998,2]
[359781393,1746339040988,-1498.19,0.0001998,2]
[359781394,1746339040997,-450.0,0.0001998,2]
[359781395,1746339041006,-450.0,0.0001998,2]
[359781396,1746339041015,-3322.56,0.0001998,2]
[359781397,1746339041024,-450.0,0.0001998,2]
[359781398,1746339041034,-2477.24,0.0001998,2]
[359781399,1746339041044,-450.0,0.0001998,2]
[359781400,1746339041053,-450.0,0.0001998,2]
[359781401,1746339041063,-450.0,0.0001998,2]
[359781402,1746339041072,-450.0,0.0001998,2]
[359781403,1746339041081,-450.0,0.0001998,2]
[359781404,1746339041090,-571.53,0.0001998,2]
[359781405,1746339041100,-450.0,0.0001998,2]
[359781406,1746339041109,-2456.28,0.0001998,2]
[359781407,1746339041118,-57135.79,0.0001998,2]
[359781408,1746339041128,-450.0,0.0001998,2]
[359781409,1746339041139,-509.46837617,0.0001998,2]
[359781410,1746339041148,-450.0,0.0001998,2]
[359781411,1746339041157,-450.0,0.0001998,2]
[359781412,1746339041167,-661.04,0.0001998,2]
[359781413,1746339041177,-450.0,0.0001998,2]
[359781414,1746339041187,-948.69,0.0001998,2]
[359781415,1746339041196,-450.0,0.0001998,2]
[359781416,1746339041206,-1065.85,0.0001998,2]
[359781417,1746339041215,-450.0,0.0001998,2]
[359781418,1746339041225,-2916.74,0.0001998,2]
[359781419,1746339041234,-450.0,0.0001998,2]
[359781420,1746339041244,-450.0,0.0001998,2]
[359781421,1746339041253,-737.77,0.0001998,2]
[359781422,1746339041263,-450.0,0.0001998,2]
[359781423,1746339041271,-450.0,0.0001998,2]
[359781424,1746339041281,-13939.55,0.0001998,2]
[359781425,1746339041290,-450.0,0.0001998,2]
[359781426,1746339041299,-450.0,0.0001998,2]
[359781427,1746339041308,-450.0,0.0001998,2]
[359781428,1746339041318,-897.14,0.0001998,2]
[359781429,1746339041327,-450.0,0.0001998,2]
[359781430,1746339041337,-507.93,0.0001998,2]
[359781431,1746339041347,-246.75586491,0.0001998,2]
[359781432,1746339041357,-7695.42,0.0001998,2]
[359781433,1746339041366,-450.0,0.0001998,2]
[359781434,1746339041375,-450.0,0.0001998,2]
[359781435,1746339041385,-298.77949684,0.0001998,2]
[359781436,1746339041394,-650.16,0.0001998,2]
[359781437,1746339041403,-450.0,0.0001998,2]
[359781438,1746339041412,-450.0,0.0001998,2]
[359781439,1746339041422,-657.87,0.0001998,2]
[359781440,1746339041432,-450.0,0.0001998,2]
[359781441,1746339041441,-450.0,0.0001998,2]
[359781442,1746339041451,-1752.31,0.0001998,2]
[359781443,1746339041461,-450.0,0.0001998,2]
[359781444,1746339041470,-611.97,0.0001998,2]
[359781445,1746339041479,-450.0,0.0001998,2]
[359781446,1746339041489,-938.57,0.0001998,2]
[359781447,1746339041499,-450.0,0.0001998,2]
[359781448,1746339041510,-450.0,0.0001998,2]
[359781449,1746339041520,-876.43,0.0001998,2]
[359781450,1746339041530,-450.0,0.0001998,2]
[359781451,1746339041540,-450.0,0.0001998,2]
[359781452,1746339041550,-450.0,0.0001998,2]
[359781453,1746339041561,-450.0,0.0001998,2]
[359781454,1746339041570,-450.0,0.0001998,2]
[359781455,1746339041579,-62599.97,0.0001998,2]
[359781456,1746339041589,-475.80056671,0.0001998,2]
[359781457,1746339041599,-573.55,0.0001998,2]
[359781458,1746339041609,-450.0,0.0001998,2]
[359781459,1746339041619,-450.0,0.0001998,2]
[359781460,1746339041630,-450.0,0.0001998,2]
[359781461,1746339041639,-450.0,0.0001998,2]
[359781462,1746339041648,-450.0,0.0001998,2]
[359781463,1746339041657,-450.0,0.0001998,2]
[359781464,1746339041666,-450.0,0.0001998,2]
[359781465,1746339041676,-3274.59,0.0001998,2]
[359781466,1746339041685,-450.0,0.0001998,2]
[359781467,1746339041694,-497.64,0.0001998,2]
[359781468,1746339041703,-450.0,0.0001998,2]
[359781469,1746339041712,-450.0,0.0001998,2]
[359781470,1746339041723,-450.0,0.0001998,2]
[359781471,1746339041732,-1111.42,0.0001998,2]
[359781472,1746339041742,-450.0,0.0001998,2]
[359781473,1746339041752,-450.0,0.0001998,2]
[359781474,1746339041762,-2523.01,0.0001998,2]
[359781475,1746339041771,-536.94,0.0001998,2]
[359781476,1746339041780,-450.0,0.0001998,2]
[359781477,1746339041790,-451.26,0.0001998,2]
[359781478,1746339041799,-450.0,0.0001998,2]
[359781479,1746339041808,-450.0,0.0001998,2]
[359781480,1746339041816,-1445.32,0.0001998,2]
[359781481,1746339041825,-1138.71,0.0001998,2]
[359781482,1746339041834,-450.0,0.0001998,2]
[359781483,1746339041843,-450.0,0.0001998,2]
[359781484,1746339041853,-184.31145505,0.0001998,2]
[359781485,1746339041864,-389.58235253,0.0001998,2]
[359781486,1746339041873,-541.51,0.0001998,2]
[359781487,1746339041882,-450.0,0.0001998,2]
[359781488,1746339041891,-917.52,0.0001998,2]
[359781489,1746339041901,-450.0,0.0001998,2]
[359781490,1746339041910,-597.61,0.0001998,2]
[359781491,1746339041920,-450.0,0.0001998,2]
[359781492,1746339041929,-450.0,0.0001998,2]
[359781493,1746339041939,-850.74,0.0001998,2]
[359781494,1746339041948,-684.05,0.0001998,2]
[359781495,1746339041957,-622.64,0.0001998,2]
[359781496,1746339041966,-450.0,0.0001998,2]
[359781497,1746339041975,-3467.86,0.0001998,2]
[359781498,1746339041984,-505.92,0.0001998,2]
[359781499,1746339041993,-572.7,0.0001998,2]
[359781500,1746339042002,-450.0,0.00019981,2]
[359781501,1746339042011,-681.95,0.00019981,2]
[359781502,1746339042020,-450.0,0.00019981,2]
[359781503,1746339042030,-450.0,0.00019981,2]
[359781504,1746339042039,-547.2,0.00019981,2]
[359781505,1746339042048,-450.0,0.00019981,2]
[359781506,1746339042057,-450.0,0.00019981,2]
[359781507,1746339042066,-303.94374271,0.00019981,2]
[359781508,1746339042075,-450.0,0.00019981,2]
[359781509,1746339042084,-1454.15,0.00019981,2]
[359781510,1746339042093,-160.78490629,0.00019981,2]
[359781511,1746339042102,-450.0,0.00019981,2]
[359781512,1746339042111,-910.31,0.00019981,2]
[359781513,1746339042120,-450.0,0.00019981,2]
[359781514,1746339042129,-450.0,0.00019981,2]
[359781515,1746339042139,-792.76,0.00019981,2]
[359781516,1746339042148,-450.0,0.00019981,2]
[359781517,1746339042158,-450.0,0.00019981,2]
[359781518,1746339042167,-450.0,0.00019981,2]
[359781519,1746339042177,-450.0,0.00019981,2]
[359781520,1746339042186,-450.0,0.00019981,2]
[359781521,1746339042195,-229.88324052,0.00019981,2]
[359781522,1746339042205,-713.66,0.00019981,2]
[359781523,1746339042214,-450.0,0.00019981,2]
[359781524,1746339042224,-450.0,0.00019981,2]
[359781525,1746339042233,-885.2,0.00019981,2]
[359781526,1746339042242,-450.0,0.00019981,2]
[359781527,1746339042251,-450.0,0.00019981,2]
[359781528,1746339042261,-450.0,0.00019981,2]
[359781529,1746339042270,-450.0,0.00019981,2]
[359781530,1746339042279,-450.0,0.00019981,2]
[359781531,1746339042288,-450.0,0.00019981,2]
[359781532,1746339042298,-533.37,0.00019981,2]
[359781533,1746339042307,-450.0,0.00019981,2]
[359781534,1746339042316,-1644.21,0.00019981,2]
[359781535,1746339042326,-450.0,0.00019981,2]
[359781536,1746339042335,-722.35,0.00019981,2]
[359781537,1746339042344,-450.0,0.00019981,2]
[359781538,1746339042353,-1485.81,0.00019981,2]
[359781539,1746339042362,-450.0,0.00019981,2]
[359781540,1746339042371,-450.0,0.00019981,2]
[359781541,1746339042381,-450.0,0.00019981,2]
[359781542,1746339042391,-450.0,0.00019981,2]
[359781543,1746339042400,-339.99471568,0.00019982,2]
[359781544,1746339042409,-360.86489208,0.00019982,2]
[359781545,1746339042419,-1211.4799913,0.00019986,2]
[359781546,1746339042428,-3465.4401093,0.00019986,2]
[359781547,1746339042437,-2435.6723934,0.00019986,2]
[359781548,1746339042446,-90710.1193349,0.00019986,2]
[359781549,1746339042455,-4863.9825023,0.00019986,2]
[359781550,1746339042464,-39610.9946584,0.00019986,2]
[359781551,1746339042473,-168.91563715,0.0001999,2]
[359781552,1746339042482,-300.0,0.00019999,2]
[359781553,1746339042491,-500.0,0.00019999,2]
[359781554,1746339042500,-666.0,0.00019999,2]
[359781555,1746339042509,-500.0,0.00019999,2]
[359781556,1746339042518,-500.0,0.00019999,2]
[359781557,1746339042527,-300.0,0.00019999,2]
[359781558,1746339042536,-300.0,0.00019999,2]
[359781559,1746339042545,-450.0,0.00019999,2]
[359781560,1746339042554,-499.75,0.00019999,2]
[359781561,1746339042562,-500.0,0.00019999,2]
[359781562,1746339042571,-500.0,0.00019999,2]
[359781564,1746339042580,-500.0,0.00019999,2]
[359781565,1746339042590,-500.0,0.00019999,2]
[359781566,1746339042599,-500.0,0.00019999,2]
[359781567,1746339042608,-500.0,0.00019999,2]
[359781568,1746339042618,-371.05615187,0.00019999,2]
[359781569,1746339042628,-500.0,0.00019999,2]
[359781571,1746339042639,-500.0,0.00019999,2]
[359781573,1746339042650,-243.91611927,0.00019999,2]
[359781574,1746339042659,-163.51841799,0.00019999,2]
[359781576,1746339042668,-500.0,0.00019999,2]
[359781578,1746339042678,-250.0,0.00019999,2]
[359781579,1746339042687,-273.7715137,0.00019999,2]
[359781580,1746339042696,-176.71981902,0.00019999,2]
[359781581,1746339042705,-813.0,0.00019999,2]
[359781582,1746339042715,-1142.06810715,0.0002,2]
[359781583,1746339042724,-103169.01263449,0.0002,2]
[359781584,1746339042994,-4049.2901138,0.0002,2]
[359781585,1746339043005,-3120914.71907185,0.0002,2]
[359781586,1746339043014,-2000.0,0.0002,4]
[359781587,1746339043024,-2000.0,0.0002,4]
[359781588,1746339043033,-2000.0,0.0002,4]
[359781589,1746339043042,-2000.0,0.0002,4]
[359781590,1746339043051,-2000.0,0.0002,4]
[359781591,1746339043061,-2000.0,0.0002,4]
[359781592,1746339043070,-618071.47341412,0.0002,2]
[359781593,1746339043081,-962.44181768,0.0002,2]
[359781594,1746339043102,-933.36463944,0.0002,2]
[359781595,1746339043333,-450.0,0.0001998,2]
[359781596,1746339043344,-121.02940977,0.0001998,2]
[359781602,1746339045804,-450.0,0.00019979,2]
[359781603,1746339045813,-450.0,0.00019979,2]
[359781604,1746339045824,-452.23059023,0.0001998,2]
[359781605,1746339045835,-2522.28940977,0.0002,2]
[359781606,1746339045921,-556.38666163,0.0002,2]
[359781612,1746339181568,378.72,0.00019086,2]
[359781613,1746339189726,996.56,0.00019178,2]
[359781614,1746339228134,606.39,0.00017161,2]
[359781615,1746339228346,606.39,0.00019425,2]
[359781627,1746339847771,1000.0,0.00019007,2]
[359781628,1746339919958,10042.14561369,9e-05,2]
[359781635,1746339939562,186.39,0.00019021,2]
[359781636,1746339988229,179.68,0.00030136,120]
[359781637,1746340020215,250.0,0.00017,2]
[359781638,1746340021252,300.0,0.00019,2]
[359781661,1746340075390,5425.89269615,0.0001,2]
[359781662,1746340093458,5958.95903664,0.0001439,2]
[359781663,1746340120591,200.0,0.00018979,2]
[359781742,1746340232076,-1200.0,0.00019699,2]
[359781743,1746340232085,-300.0,0.00019699,2]
[359781744,1746340232095,-2500.0,0.000197,2]
[359781745,1746340232104,-2500.0,0.000197,2]
[359781746,1746340232114,-200.0,0.00019746,2]
[359781747,1746340232124,-200.0,0.00019777,2]
[359781748,1746340232133,-300.0,0.00019792,2]
[359781749,1746340232143,-207.615535,0.00019799,2]
[359781750,1746340232153,-250.0,0.00019799,2]
[359781751,1746340232162,-31397.9351,0.000198,2]
[359781752,1746340232172,-1000.0,0.000198,2]
[359781753,1746340232181,-756.5140402,0.00019803,2]
[359781754,1746340232191,-571.17732568,0.00019878,2]
[359781755,1746340232201,-2500.0,0.00019878,2]
[359781756,1746340232211,-799.6414,0.00019878,2]
[359781757,1746340232220,-2260.7658,0.00019879,2]
[359781758,1746340232229,-3052.29931689,0.000199,2]
[359781759,1746340232241,-9131.20771,0.000199,2]
[359781760,1746340232252,-316.49297311,0.000199,2]
[359781761,1746340232261,-5000.0,0.000199,2]
[359781762,1746340232270,-2065.88375189,0.000199,2]
[359781763,1746340232282,-3139.93720366,0.000199,2]
[359781764,1746340232292,-162.23859141,0.000199,2]
[359781765,1746340232301,-2825.05220493,0.000199,2]
[359781773,1746340232555,-5363.23904723,0.000199,2]
[359781778,1746340232590,-5231.3142471,0.000199,2]
[359781780,1746340232600,-2088.6857529,0.000199,2]
[359781781,1746340232619,-1579.13148732,0.000199,2]
[359781782,1746340232633,-450.037073,0.000199,2]
[359781783,1746340232646,-1445.4439104,0.000199,2]
[359781784,1746340232656,-199.54860044,0.000199,2]
[359781785,1746340232665,-574.14287632,0.000199,2]
[359781786,1746340232674,-152.61129874,0.000199,3]
[359781787,1746340232685,-173.61940952,0.000199,2]
[359781788,1746340232694,-1601.32861572,0.000199,2]
[359781789,1746340232703,-207.4,0.00019905,2]
[359781790,1746340232712,-27755.66564641,0.00019917,2]
[359781791,1746340238261,-1153.86737547,0.00019917,2]
[359781792,1746340238272,-459.13262453,0.00019917,2]
[359781799,1746340240399,-571.56566897,0.00019917,2]
[359781800,1746340240602,-60698.79868462,0.00019917,2]
[359781802,1746340240612,-2050.361,0.00019972,2]
[359781804,1746340240621,-182.598,0.00019972,2]
[359781805,1746340240631,-500.0,0.00019973,2]
[359781806,1746340240640,-508.22139072,0.00019973,2]
[359781807,1746340240650,-500.0,0.00019973,2]
[359781808,1746340240659,-500.0,0.00019973,2]
[359781809,1746340240668,-151.0,0.00019974,2]
[359781810,1746340240678,-450.0,0.00019977,2]
[359781811,1746340240689,-450.0,0.00019977,2]
[359781812,1746340240699,-450.0,0.00019977,2]
[359781813,1746340240709,-450.0,0.00019977,2]
[359781814,1746340240718,-561.65,0.00019977,2]
[359781815,1746340240728,-1575.1,0.00019977,2]
[359781816,1746340240738,-450.0,0.00019977,2]
[359781817,1746340240747,-1213.01,0.00019977,2]
[359781818,1746340240756,-2932.97,0.00019977,2]
[359781819,1746340240765,-450.0,0.00019977,2]
[359781820,1746340240775,-450.0,0.00019977,2]
[359781821,1746340240784,-576.79,0.00019978,2]
[359781822,1746340240793,-490.42,0.00019978,2]
[359781823,1746340240802,-450.0,0.00019978,2]
[359781824,1746340240811,-450.0,0.00019978,2]
[359781825,1746340240821,-216.40502554,0.00019978,2]
[359781826,1746340240830,-450.0,0.00019978,2]
[359781827,1746340240839,-450.0,0.00019978,2]
[359781829,1746340240848,-450.0,0.00019978,2]
[359781830,1746340240857,-450.0,0.00019978,2]
[359781831,1746340240866,-450.0,0.00019978,2]
[359781832,1746340240875,-450.0,0.00019978,2]
[359781833,1746340240884,-450.0,0.00019978,2]
[359781834,1746340240893,-786.78,0.00019978,2]
[359781835,1746340240903,-450.0,0.00019978,2]
[359781836,1746340240912,-450.0,0.00019978,2]
[359781837,1746340240921,-450.0,0.00019978,2]
[359781838,1746340240930,-450.0,0.00019978,2]
[359781839,1746340240942,-450.0,0.00019978,2]
[359781840,1746340240951,-2353.93,0.00019978,2]
[359781841,1746340240960,-1500.9,0.00019978,2]
[359781842,1746340240969,-450.0,0.00019978,2]
[359781843,1746340240978,-450.0,0.00019978,2]
[359781844,1746340240987,-56272.67,0.00019978,2]
[359781845,1746340240997,-572.57,0.00019978,2]
[359781846,1746340241006,-450.0,0.00019978,2]
[359781847,1746340241015,-950.41,0.00019978,2]
[359781848,1746340241025,-450.0,0.00019978,2]
[359781849,1746340241035,-450.0,0.00019978,2]
[359781850,1746340241045,-633.49,0.00019978,2]
[359781851,1746340241055,-450.0,0.00019978,2]
[359781852,1746340241064,-450.0,0.00019978,2]
[359781853,1746340241074,-2922.02,0.00019978,2]
[359781854,1746340241083,-450.0,0.00019978,2]
[359781855,1746340241093,-450.0,0.00019978,2]
[359781856,1746340241103,-13595.63,0.00019978,2]
[359781857,1746340241112,-739.11,0.00019978,2]
[359781858,1746340241121,-450.0,0.00019978,2]
[359781859,1746340241130,-898.76,0.00019978,2]
[359781860,1746340241139,-450.0,0.00019978,2]
[359781861,1746340241149,-450.0,0.00019978,2]
[359781862,1746340241159,-7709.36,0.00019978,2]
[359781863,1746340241169,-450.0,0.00019978,2]
[359781864,1746340241179,-1367.07,0.00019978,2]
[359781865,1746340241191,-450.0,0.00019978,2]
[359781866,1746340241200,-450.0,0.00019978,2]
[359781867,1746340241210,-450.0,0.00019978,2]
[359781868,1746340241219,-450.0,0.00019978,2]
[359781869,1746340241228,-450.0,0.00019978,2]
[359781870,1746340241238,-450.0,0.00019978,2]
[359781871,1746340241247,-450.0,0.00019978,2]
[359781872,1746340241256,-659.06,0.00019978,2]
[359781873,1746340241266,-450.0,0.00019978,2]
[359781874,1746340241275,-450.0,0.00019978,2]
[359781875,1746340241284,-1755.49,0.00019978,2]
[359781876,1746340241294,-450.0,0.00019978,2]
[359781877,1746340241303,-387.82959739,0.00019978,2]
[359781878,1746340241312,-508.85,0.00019978,2]
[359781879,1746340241321,-940.28,0.00019978,2]
[359781880,1746340241330,-450.0,0.00019978,2]
[359781881,1746340241340,-500.0,0.00019978,2]
[359781882,1746340241349,-450.0,0.00019978,2]
[359781883,1746340241358,-651.33,0.00019978,2]
[359781884,1746340241367,-450.0,0.00019978,2]
[359781885,1746340241376,-150.0,0.00019978,2]
[359781886,1746340241386,-450.0,0.00019978,2]
[359781887,1746340241395,-278.13311498,0.00019978,2]
[359781888,1746340241405,-450.0,0.00019978,2]
[359781889,1746340241414,-62713.38,0.00019978,2]
[359781890,1746340241423,-878.01,0.00019978,2]
[359781891,1746340241432,-450.0,0.00019978,2]
[359781892,1746340241444,-450.0,0.00019978,2]
[359781893,1746340241453,-450.0,0.00019978,2]
[359781894,1746340241463,-450.0,0.00019978,2]
[359781895,1746340241473,-450.0,0.00019978,2]
[359781896,1746340241482,-3280.52,0.00019978,2]
[359781897,1746340241492,-498.54,0.00019978,2]
[359781898,1746340241501,-370.05556011,0.00019978,2]
[359781899,1746340241510,-574.59,0.00019978,2]
[359781900,1746340241520,-500.0,0.00019978,2]
[359781901,1746340241529,-450.0,0.00019978,2]
[359781902,1746340241539,-150.0,0.00019978,2]
[359781903,1746340241548,-450.0,0.00019978,2]
[359781904,1746340241558,-175.91448904,0.00019978,2]
[359781905,1746340241567,-450.0,0.00019978,2]
[359781906,1746340241576,-450.0,0.00019978,2]
[359781907,1746340241585,-2518.08,0.00019978,2]
[359781908,1746340241595,-450.0,0.00019978,2]
[359781909,1746340241604,-537.91,0.00019978,2]
[359781910,1746340241614,-450.0,0.00019978,2]
[359781911,1746340241837,-450.0,0.00019978,2]
[359781912,1746340241847,-450.0,0.00019978,2]
[359781913,1746340241856,-1447.94,0.00019978,2]
[359781914,1746340241866,-1140.77,0.00019978,2]
[359781915,1746340241875,-450.0,0.00019978,2]
[359781916,1746340241884,-450.0,0.00019978,2]
[359781917,1746340241893,-1113.43,0.00019978,2]
[359781918,1746340241902,-439.81400919,0.00019978,2]
[359781919,1746340241914,-452.08,0.00019978,2]
[359781920,1746340241924,-598.69,0.00019978,2]
[359781921,1746340241933,-536.87,0.00019978,2]
[359781922,1746340241943,-450.0,0.00019978,2]
[359781923,1746340241952,-450.0,0.00019978,2]
[359781924,1746340241961,-450.0,0.00019978,2]
[359781925,1746340241970,-685.29,0.00019978,2]
[359781926,1746340241979,-450.0,0.00019978,2]
[359781927,1746340241989,-542.49,0.00019978,2]
[359781928,1746340241998,-852.28,0.00019978,2]
[359781929,1746340242007,-500.0,0.00019978,2]
[359781930,1746340242016,-450.0,0.00019978,2]
[359781931,1746340242026,-3474.15,0.00019978,2]
[359781932,1746340242036,-450.0,0.00019978,2]
[359781933,1746340242046,-526.48,0.00019978,2]
[359781934,1746340242055,-623.77,0.00019978,2]
[359781935,1746340242064,-2773.81,0.00019978,2]
[359781936,1746340242074,-500.0,0.00019979,2]
[359781937,1746340242085,-500.0,0.00019979,2]
[359781938,1746340242094,-500.0,0.00019979,2]
[359781939,1746340242103,-500.0,0.00019979,2]
[359781940,1746340242112,-500.0,0.00019979,2]
[359781941,1746340242121,-500.0,0.00019979,2]
[359781942,1746340242131,-500.0,0.00019979,2]
[359781943,1746340242140,-500.0,0.00019979,2]
[359781944,1746340242150,-500.0,0.00019979,2]
[359781945,1746340242159,-500.0,0.00019979,2]
[359781946,1746340242169,-500.0,0.00019979,2]
[359781947,1746340242178,-500.0,0.00019979,2]
[359781948,1746340242187,-500.0,0.00019979,2]
[359781949,1746340242196,-500.0,0.00019979,2]
[359781950,1746340242205,-500.0,0.00019979,2]
[359781951,1746340242214,-330.04417946,0.00019979,2]
[359781952,1746340242223,-450.0,0.00019979,2]
[359781953,1746340242233,-450.0,0.00019979,2]
[359781954,1746340242242,-1060.65,0.00019979,2]
[359781955,1746340242251,-450.0,0.00019979,2]
[359781956,1746340242260,-450.0,0.00019979,2]
[359781957,1746340242269,-548.83,0.00019979,2]
[359781958,1746340242278,-450.0,0.00019979,2]
[359781959,1746340242287,-450.0,0.00019979,2]
[359781960,1746340242296,-713.61,0.00019979,2]
[359781961,1746340242304,-450.0,0.00019979,2]
[359781962,1746340242313,-450.0,0.00019979,2]
[359781963,1746340242323,-450.0,0.00019979,2]
[359781964,1746340242332,-450.0,0.00019979,2]
[359781965,1746340242341,-450.0,0.00019979,2]
[359781966,1746340242350,-450.0,0.00019979,2]
[359781967,1746340242359,-885.13,0.00019979,2]
[359781968,1746340242368,-450.0,0.00019979,2]
[359781969,1746340242376,-450.0,0.00019979,2]
[359781970,1746340242385,-511.15,0.00019979,2]
[359781971,1746340242394,-450.0,0.00019979,2]
[359781972,1746340242403,-450.0,0.00019979,2]
[359781973,1746340242413,-450.0,0.00019979,2]
[359781974,1746340242423,-450.0,0.00019979,2]
[359781975,1746340242434,-450.0,0.00019979,2]